bitfinex/quotes_BTCUSD_20241223
["timestamp","ask_amount","ask_price","bid_price","bid_amount"]
[1734986054366,0.214562,93213.0,93200.0,0.214591]
[1734986054565,0.214562,93213.0,93190.0,0.001]
[1734986054566,0.00107343,93212.0,93191.0,0.0762]
[1734986054743,0.0818,93228.0,93192.0,0.10505918]
[1734986054744,0.214553,93217.0,93192.0,0.10505918]
[1734986054986,0.214557,93215.0,93201.0,0.214588]
[1734986055193,0.00107343,93214.0,93201.0,0.214588]
[1734986055606,0.214557,93215.0,93201.0,0.214588]
[1734986055821,0.00107343,93214.0,93201.0,0.214588]
[1734986056031,0.10398632,93213.0,93179.0,0.0762]
[1734986056237,0.01228795,93212.0,93183.0,0.001073]
[1734986056447,0.01228795,93212.0,93179.0,0.0762]
[1734986056448,0.214569,93210.0,93185.0,0.09616022]
[1734986056670,0.2318,93207.0,93185.0,0.09616022]
[1734986056883,0.21459,93201.0,93185.0,0.09616022]
[1734986057095,0.214612,93192.0,93185.0,0.09616022]
[1734986057301,0.2318,93207.0,93185.0,0.09616022]
[1734986057505,0.2318,93207.0,93183.0,0.214629]
[1734986057506,0.15,93205.0,93183.0,0.214629]
[1734986057745,0.00107343,93204.0,93183.0,0.214629]
[1734986057969,0.00107343,93204.0,93178.0,0.00015935]
[1734986057970,0.31856932,93204.0,93178.0,0.00015935]
[1734986058166,0.31856932,93204.0,93185.0,0.001]
[1734986058167,0.21404835,93190.0,93185.0,0.001]
[1734986058508,0.214602,93196.0,93185.0,0.001]
[1734986058661,0.214602,93196.0,93181.0,0.214635]
[1734986058869,0.214589,93202.0,93186.0,0.214622]
[1734986059079,0.214589,93202.0,93187.0,0.00107302]
[1734986059285,0.214589,93202.0,93188.0,0.214619]
[1734986059286,0.00134125,93201.0,93188.0,0.214619]
[1734986059838,0.214592,93200.0,93186.0,0.214624]
[1734986060019,0.214589,93202.0,93186.0,0.214624]
[1734986060169,0.00134125,93201.0,93186.0,0.214624]
[1734986061010,0.00134125,93201.0,93190.0,0.214615]
[1734986061366,0.15,93206.0,93194.0,0.214605]
[1734986061502,0.15,93206.0,93186.0,0.002]
[1734986061698,0.15134125,93206.0,93186.0,0.002]
[1734986061949,8.54e-05,93207.0,93187.0,0.214621]
[1734986062150,0.2146624,93207.0,93190.0,0.002]
[1734986062351,0.00134116,93206.0,93193.0,0.214608]
[1734986062565,0.00134116,93206.0,93197.0,0.214597]
[1734986062755,8.54e-05,93207.0,93197.0,0.214597]
[1734986062956,8.54e-05,93207.0,93201.0,0.214589]
[1734986063356,8.54e-05,93207.0,93197.0,0.214597]
[1734986063560,0.02146534,93206.0,93195.0,0.214603]
[1734986063760,0.00134116,93205.0,93195.0,0.214603]
[1734986063913,8.54e-05,93207.0,93195.0,0.214603]
[1734986064115,8.54e-05,93207.0,93191.0,0.214612]
[1734986064116,0.25398632,93206.0,93185.0,0.07833102]
[1734986064335,0.214617,93189.0,93185.0,0.07833102]
[1734986064539,0.214622,93187.0,93185.0,0.07833102]
[1734986065343,0.0474,93205.0,93178.0,0.19182291]
[1734986065344,0.429263,93183.0,93178.0,0.00015935]
[1734986065561,0.214636,93181.0,93178.0,0.00015935]
[1734986065775,0.00134162,93180.0,93178.0,0.00015935]
[1734986065974,0.21464,93179.0,93178.0,0.00015935]
[1734986067293,0.214628,93185.0,93178.0,0.00015935]
[1734986067494,0.214614,93191.0,93178.0,0.00015935]
[1734986067696,0.214608,93194.0,93178.0,0.00215935]
[1734986067872,0.214636,93181.0,93178.0,0.00415935]
[1734986068074,0.21464,93179.0,93178.0,0.00215935]
[1734986068282,0.21464,93179.0,93178.0,0.00015935]
[1734986068460,0.21464,93179.0,93178.0,0.00215935]
[1734986069090,0.29818929,93179.0,93178.0,0.00215935]
[1734986069300,0.214694,93156.0,93146.0,0.14405927]
[1734986069933,0.214694,93156.0,93141.0,0.214728]
[1734986070543,0.214697,93155.0,93140.0,0.0824]
[1734986070790,0.214709,93150.0,93146.0,0.007]
[1734986070996,0.214712,93148.0,93146.0,0.007]
[1734986071197,0.00134204,93147.0,93146.0,0.007]
[1734986071420,0.10532836,93147.0,93146.0,0.007]
[1734986071624,0.579432,93146.0,93141.0,0.004]
[1734986071838,0.214721,93144.0,93141.0,0.004]
[1734986072055,0.00134216,93143.0,93141.0,0.011]
[1734986072228,0.00134207,93155.0,93141.0,0.01115935]
[1734986072457,0.214724,93143.0,93141.0,0.01115935]
[1734986072584,0.00134207,93142.0,93141.0,0.01115935]
[1734986073010,0.00134207,93142.0,93141.0,0.00715935]
[1734986073215,0.00134207,93142.0,93141.0,0.00015935]
[1734986074023,0.00134207,93142.0,93141.0,0.00215935]
[1734986074247,0.31868532,93154.0,93119.0,0.214777]
[1734986074248,0.214721,93145.0,93119.0,0.023]
[1734986074471,0.214713,93148.0,93121.0,0.237774]
[1734986074690,0.00134203,93147.0,93141.0,0.001]
[1734986074832,0.214716,93146.0,93141.0,0.0021708]
[1734986075034,0.214721,93144.0,93141.0,0.0011708]
[1734986075448,0.214705,93151.0,93141.0,0.0011708]
[1734986075645,0.00134203,93150.0,93141.0,0.0011708]
[1734986076086,0.21472,93145.0,93141.0,0.0001708]
[1734986076535,0.00134203,93144.0,93141.0,0.0001708]
[1734986076750,0.00134203,93144.0,93141.0,0.0011708]
[1734986077159,0.00134203,93144.0,93141.0,0.0001708]
[1734986077449,0.214723,93143.0,93141.0,0.0021708]
[1734986077659,0.00134214,93142.0,93141.0,0.0021708]
[1734986077869,0.1811286,93142.0,93141.0,0.0001708]
[1734986078079,0.3311286,93142.0,93141.0,0.0001708]
[1734986078255,0.32978632,93142.0,93141.0,0.0001708]
[1734986079310,0.214756,93129.0,93115.0,0.1950423]
[1734986079508,0.32978632,93142.0,93141.0,0.001]
[1734986079736,0.25398632,93142.0,93141.0,0.001]
[1734986079870,0.25398632,93142.0,93120.0,0.214774]
[1734986079871,0.15,93141.0,93124.0,0.214765]
[1734986080074,0.15,93141.0,93120.0,0.214774]
[1734986080075,0.214738,93137.0,93120.0,0.214774]
[1734986080289,0.214747,93133.0,93120.0,0.214774]
[1734986080486,0.214747,93133.0,93116.0,0.214784]
[1734986080487,0.214751,93131.0,93116.0,0.214784]
[1734986080684,0.00134226,93130.0,93116.0,0.214784]
[1734986080898,0.214751,93131.0,93116.0,0.429569]
[1734986081099,0.00134226,93130.0,93116.0,0.429569]
[1734986081729,0.00134226,93130.0,93116.0,0.214784]
[1734986081972,0.00134226,93130.0,93120.0,0.002]
[1734986083222,0.00134226,93130.0,93116.0,0.214784]
[1734986083423,0.04308403,93129.0,93120.0,0.002]
[1734986083958,0.04308403,93129.0,93120.0,0.214775]
[1734986084175,0.00134226,93130.0,93120.0,0.003]
[1734986084552,0.00134226,93130.0,93120.0,0.217776]
[1734986084722,0.214744,93134.0,93120.0,0.221776]
[1734986084877,0.00134226,93133.0,93120.0,0.221776]
[1734986085483,0.00015914,93154.0,93122.0,0.023]
[1734986085748,0.00015914,93154.0,93142.0,0.214725]
[1734986085947,0.00015914,93154.0,93126.0,0.023]
[1734986086130,0.00150108,93154.0,93127.0,0.10398632]
[1734986086337,0.00150108,93154.0,93143.0,0.214722]
[1734986086548,0.00015914,93154.0,93143.0,0.214722]
[1734986086698,8.54e-05,93146.0,93143.0,0.214722]
[1734986087678,8.54e-05,93146.0,93143.0,0.216722]
[1734986087905,0.0010854,93146.0,93143.0,0.438445]
[1734986088871,0.0010854,93146.0,93143.0,0.436445]
[1734986089188,0.0010854,93146.0,93143.0,0.419445]
[1734986090309,0.0010854,93146.0,93143.0,0.01]
[1734986090474,0.00134216,93145.0,93143.0,0.01]
[1734986090680,0.0010854,93146.0,93143.0,0.01]
[1734986090931,0.00134205,93145.0,93143.0,0.01]
[1734986091057,0.00134205,93145.0,93143.0,0.003]
[1734986091472,0.00134205,93145.0,93143.0,0.004]
[1734986092512,0.00134205,93145.0,93143.0,0.001]
[1734986092710,0.00134205,93145.0,93143.0,0.003]
[1734986092911,0.18148632,93144.0,93143.0,0.003]
[1734986093168,0.18148632,93144.0,93143.0,0.002]
[1734986093379,0.33148632,93144.0,93143.0,0.002]
[1734986093556,0.33148632,93144.0,93143.0,0.003]
[1734986093765,0.33148632,93144.0,93116.0,0.0001708]
[1734986093766,0.214783,93117.0,93116.0,0.0001708]
[1734986093977,0.39626932,93117.0,93116.0,0.0001708]
[1734986094219,0.18148632,93117.0,93103.0,0.07637161]
[1734986094428,0.214779,93119.0,93103.0,0.07637161]
[1734986094630,0.214788,93115.0,93104.0,0.214813]
[1734986094840,0.02106876,93123.0,93104.0,0.214813]
[1734986094841,0.15,93123.0,93104.0,0.214813]
[1734986095038,0.00134238,93122.0,93104.0,0.31879932]
[1734986095242,0.00134238,93122.0,93105.0,0.214811]
[1734986095419,0.214774,93121.0,93110.0,0.214798]
[1734986095638,0.00134238,93120.0,93110.0,0.214798]
[1734986095835,0.214774,93121.0,93106.0,0.214808]
[1734986096038,0.00134238,93120.0,93110.0,0.214798]
[1734986096383,0.004,93117.0,93110.0,0.214798]
[1734986096592,0.004,93117.0,93110.0,0.10398632]
[1734986096816,0.004,93117.0,93115.0,0.214787]
[1734986097026,0.003,93117.0,93115.0,0.214787]
[1734986097227,0.214744,93134.0,93121.0,0.214772]
[1734986097432,0.21608825,93133.0,93111.0,0.39588232]
[1734986097643,0.00134225,93132.0,93121.0,0.214773]
[1734986099341,0.00134225,93132.0,93121.0,0.194773]
[1734986099777,0.00234225,93132.0,93121.0,0.194773]
[1734986100161,0.00234225,93132.0,93118.0,0.214779]
[1734986100321,0.214751,93131.0,93118.0,0.214779]
[1734986100529,0.00134225,93130.0,93116.0,0.214785]
[1734986100868,0.02305157,93130.0,93122.0,0.214771]
[1734986101188,0.001,93132.0,93122.0,0.21477]
[1734986101390,0.21575,93132.0,93119.0,0.214778]
[1734986101546,0.00134225,93131.0,93123.0,0.214768]
[1734986101752,0.001,93132.0,93123.0,0.214768]
[1734986101979,0.00134225,93131.0,93111.0,0.0771]
[1734986102179,0.214789,93115.0,93101.0,0.082]
[1734986102378,0.00134247,93114.0,93093.0,0.0001708]
[1734986102541,0.214809,93106.0,93093.0,0.0001708]
[1734986102733,0.00134271,93105.0,93093.0,0.0001708]
[1734986102989,0.214783,93117.0,93105.0,0.214811]
[1734986103380,0.15,93119.0,93103.0,0.214814]
[1734986103593,0.214788,93115.0,93103.0,0.214814]
[1734986103789,0.214792,93113.0,93104.0,0.00670215]
[1734986104034,0.214797,93111.0,93104.0,0.00670215]
[1734986104338,0.15,93106.0,93105.0,0.001]
[1734986104490,0.33072926,93106.0,93105.0,0.001]
[1734986104728,0.32938632,93106.0,93093.0,0.0001708]
[1734986104931,0.364836,93094.0,93093.0,0.0001708]
[1734986105138,0.54827162,93094.0,93093.0,0.0001708]
[1734986105338,0.64827162,93094.0,93093.0,0.0001708]
[1734986105746,0.74827162,93094.0,93093.0,0.0001708]
[1734986106203,0.74854963,93094.0,93093.0,0.0001708]
[1734986106399,0.74854963,93094.0,93093.0,0.0031708]
[1734986106961,0.56910033,93094.0,93093.0,0.0001708]
[1734986107220,0.56882232,93094.0,93093.0,0.0001708]
[1734986107515,0.47382232,93094.0,93093.0,0.0001708]
[1734986107702,0.57382232,93094.0,93093.0,0.0001708]
[1734986107859,0.57782232,93094.0,93093.0,0.0011708]
[1734986108055,0.68180864,93094.0,93093.0,0.0011708]
[1734986108275,0.68480864,93094.0,93093.0,0.0011708]
[1734986108670,0.78480864,93094.0,93093.0,0.0011708]
[1734986109136,0.77580864,93094.0,93093.0,0.0001708]
[1734986109339,0.77580864,93094.0,93057.0,0.214921]
[1734986109340,0.15,93084.0,93057.0,0.214921]
[1734986109636,0.21097264,93094.0,93070.0,0.214891]
[1734986109637,0.214866,93081.0,93070.0,0.214891]
[1734986109803,0.214878,93076.0,93064.0,0.214903]
[1734986110004,0.00134313,93075.0,93061.0,0.214912]
[1734986110415,0.214882,93074.0,93058.0,0.214918]
[1734986110599,0.214894,93069.0,93057.0,0.001]
[1734986110796,0.00134317,93068.0,93057.0,0.00115938]
[1734986111046,0.00134317,93068.0,93058.0,0.214919]
[1734986111255,0.214898,93067.0,93057.0,0.00015938]
[1734986111433,0.00134317,93066.0,93057.0,0.00015938]
[1734986111633,0.00134317,93068.0,93059.0,0.214917]
[1734986111840,0.214889,93071.0,93057.0,0.00015938]
[1734986112045,0.00134317,93070.0,93057.0,0.00015938]
[1734986112281,0.214894,93069.0,93057.0,0.21507938]
[1734986112484,0.00134317,93068.0,93057.0,0.00015938]
[1734986112818,0.10398632,93067.0,93058.0,0.001]
[1734986112993,0.00134334,93066.0,93058.0,0.001]
[1734986113194,0.00134333,93069.0,93058.0,0.001]
[1734986113492,0.214896,93068.0,93057.0,0.00015938]
[1734986113692,0.00134325,93067.0,93058.0,0.214919]
[1734986113898,0.00134325,93067.0,93058.0,0.215919]
[1734986114452,0.00134325,93067.0,93058.0,0.001]
[1734986114652,0.214897,93068.0,93058.0,0.001]
[1734986114824,0.00134325,93067.0,93058.0,0.001]
[1734986115752,0.15,93078.0,93058.0,0.001]
[1734986115962,0.15,93076.0,93058.0,0.002]
[1734986116131,0.00134313,93075.0,93065.0,0.214901]
[1734986116872,0.001,93069.0,93065.0,0.214901]
[1734986117047,0.001,93069.0,93065.0,0.429803]
[1734986117680,0.001,93075.0,93070.0,0.214891]
[1734986118064,0.001,93075.0,93065.0,0.214901]
[1734986118065,0.214882,93074.0,93065.0,0.001]
[1734986118292,0.00134305,93073.0,93065.0,0.001]
[1734986118680,0.10532937,93073.0,93065.0,0.001]
[1734986118886,0.2149,93067.0,93065.0,0.001]
[1734986119092,0.10532967,93066.0,93065.0,0.001]
[1734986119260,0.10532967,93066.0,93037.0,0.2151358]
[1734986119261,0.214937,93051.0,93037.0,0.19663698]
[1734986119438,0.00134341,93050.0,93047.0,0.00015945]
[1734986119857,0.00134341,93053.0,93047.0,0.00015945]
[1734986120064,0.00134341,93062.0,93047.0,0.00015945]
[1734986120219,0.001,93051.0,93047.0,0.00015945]
[1734986120622,0.00234341,93051.0,93047.0,0.00015945]
[1734986120818,0.001,93050.0,93048.0,0.214942]
[1734986121077,0.001,93050.0,93047.0,0.00515945]
[1734986121279,0.00134341,93050.0,93048.0,0.214942]
[1734986121498,0.001,93051.0,93050.0,0.214938]
[1734986121723,0.15,93066.0,93050.0,0.214938]
[1734986121879,0.10532967,93065.0,93047.0,0.00315945]
[1734986122093,0.214922,93058.0,93047.0,0.00515945]
[1734986122301,0.00134335,93057.0,93048.0,0.214942]
[1734986122483,0.00134335,93058.0,93048.0,0.214942]
[1734986122680,0.00134335,93058.0,93047.0,0.00324495]
[1734986122681,0.10398632,93057.0,93050.0,0.002]
[1734986122964,0.214935,93051.0,93050.0,0.002]
[1734986123158,0.46892132,93051.0,93050.0,0.002]
[1734986123391,0.46892132,93051.0,93047.0,0.00024495]
[1734986123392,0.15,93050.0,93047.0,0.00024495]
[1734986123612,0.15134361,93049.0,93048.0,0.002]
[1734986123826,0.21491,93062.0,93048.0,0.002]
[1734986123827,0.00030109,93059.0,93048.0,0.002]
[1734986124012,0.00134343,93058.0,93048.0,0.001]
[1734986124142,0.214922,93057.0,93035.0,0.214972]
[1734986124369,0.00134342,93056.0,93050.0,0.002]
[1734986124569,0.00134342,93056.0,93047.0,0.214944]
[1734986124776,0.21626842,93056.0,93043.0,0.214953]
[1734986124974,0.214925,93056.0,93043.0,0.214953]
[1734986125375,0.214925,93056.0,93041.0,0.214958]
[1734986125582,0.28330713,93056.0,93050.0,0.002]
[1734986125790,0.25398632,93061.0,93050.0,0.002]
[1734986126024,0.002,93059.0,93051.0,0.214934]
[1734986126242,0.002,93059.0,93050.0,0.002]
[1734986126243,0.00134336,93061.0,93055.0,0.293925]
[1734986126456,0.000171,93069.0,93068.0,0.214896]
[1734986127526,0.0754,93099.0,93056.0,0.214924]
[1734986127703,0.214859,93085.0,93072.0,0.214885]
[1734986128060,0.0013411,93084.0,93072.0,0.214885]
[1734986128653,0.21486,93084.0,93069.0,0.214893]
[1734986128855,0.0013411,93083.0,93073.0,0.214883]
[1734986129030,0.0013411,93087.0,93073.0,0.214883]
[1734986129213,0.10398632,93086.0,93073.0,0.194883]
[1734986129418,0.0013411,93085.0,93073.0,0.194883]
[1734986129990,0.24689275,93084.0,93073.0,0.002]
[1734986130146,0.0013411,93083.0,93073.0,0.001]
[1734986130340,0.0013411,93083.0,93073.0,0.215883]
[1734986131169,0.0023411,93084.0,93073.0,0.215883]
[1734986131368,0.0023411,93084.0,93073.0,0.214883]
[1734986131758,0.0023411,93084.0,93073.0,0.429767]
[1734986131965,0.0023411,93084.0,93057.0,0.10398632]
[1734986132171,0.001,93084.0,93082.0,0.214862]
[1734986132395,0.00015912,93091.0,93082.0,0.214862]
[1734986132593,0.00015912,93091.0,93086.0,0.214853]
[1734986132872,0.00015912,93091.0,93086.0,0.429707]
[1734986133755,0.00015912,93091.0,93086.0,0.430707]
[1734986134343,0.00033012,93091.0,93086.0,0.410707]
[1734986134935,0.00033012,93091.0,93086.0,0.001]
[1734986135141,0.00033012,93091.0,93087.0,0.214852]
[1734986135567,0.00033012,93091.0,93086.0,0.002]
[1734986135977,0.00033012,93091.0,93087.0,0.214852]
[1734986136240,0.00033012,93091.0,93088.0,0.21485]
[1734986137188,0.00033012,93091.0,93088.0,0.214849]
[1734986137603,0.00033012,93091.0,93088.0,0.215849]
[1734986138040,0.00033012,93091.0,93088.0,0.216849]
[1734986139180,0.00033012,93091.0,93088.0,0.411698]
[1734986139783,0.00033012,93091.0,93088.0,0.002]
[1734986140191,0.31883132,93090.0,93088.0,0.002]
[1734986140440,0.0013411,93089.0,93088.0,0.002]
[1734986140641,0.10856074,93089.0,93088.0,0.002]
[1734986141029,0.10856074,93089.0,93088.0,0.001]
[1734986142404,0.00323332,93089.0,93088.0,0.001]
[1734986142604,0.0013411,93089.0,93081.0,0.214864]
[1734986142906,0.00657869,93089.0,93077.0,0.214873]
[1734986143139,0.0033411,93089.0,93077.0,0.214873]
[1734986143352,0.0033411,93089.0,93073.0,0.214884]
[1734986143353,0.21809044,93088.0,93065.0,0.0457]
[1734986143566,0.214885,93073.0,93059.0,0.214916]
[1734986143791,0.15,93087.0,93058.0,0.2150045]
[1734986143792,0.10532742,93072.0,93058.0,8.55e-05]
[1734986143990,0.214896,93068.0,93058.0,8.55e-05]
[1734986144326,0.214901,93066.0,93055.0,0.1950105]
[1734986144529,0.00389253,93065.0,93055.0,0.214926]
[1734986144727,0.214896,93068.0,93055.0,0.214926]
[1734986144935,0.00392689,93067.0,93059.0,0.214916]
[1734986145137,0.45168339,93066.0,93053.0,0.04824162]
[1734986145493,0.00390932,93065.0,93053.0,0.04824162]
[1734986145699,0.00390932,93065.0,93051.0,0.26317562]
[1734986146009,0.214904,93065.0,93058.0,0.001]
[1734986146222,0.00392703,93064.0,93058.0,0.001]
[1734986146770,0.214908,93063.0,93058.0,0.001]
[1734986146969,0.04190991,93063.0,93058.0,0.001]
[1734986147194,0.00636888,93063.0,93058.0,0.001]
[1734986147404,0.214904,93065.0,93058.0,0.0010855]
[1734986147593,0.00634584,93062.0,93058.0,8.55e-05]
[1734986147794,0.214904,93065.0,93058.0,8.55e-05]
[1734986148038,0.00634584,93061.0,93058.0,8.55e-05]
[1734986148258,0.214882,93075.0,93058.0,8.55e-05]
[1734986148476,0.00015909,93077.0,93060.0,0.04824162]
[1734986148705,0.214913,93061.0,93058.0,0.0010855]
[1734986148884,0.429826,93061.0,93058.0,0.0010855]
[1734986149134,0.214917,93059.0,93058.0,8.55e-05]
[1734986149338,0.214939,93050.0,93038.0,0.02832712]
[1734986149550,0.22322,93059.0,93058.0,0.002]
[1734986149812,0.214922,93057.0,93033.0,0.0763]
[1734986150018,0.214979,93032.0,93031.0,0.09605264]
[1734986150461,0.214979,93032.0,93030.0,8.54e-05]
[1734986150462,0.32710849,93032.0,93030.0,8.54e-05]
[1734986150666,0.25398632,93031.0,93030.0,8.54e-05]
[1734986151070,0.26201338,93031.0,93030.0,8.54e-05]
[1734986151497,0.26201338,93031.0,93030.0,0.00024493]
[1734986152123,0.26201338,93031.0,93030.0,0.00124493]
[1734986152868,0.00802706,93031.0,93030.0,0.00224493]
[1734986153068,0.00802706,93031.0,93030.0,0.00124493]
[1734986153270,0.15,93037.0,93030.0,0.00124493]
[1734986153426,0.01106851,93031.0,93030.0,0.00124493]
[1734986153627,0.003,93031.0,93030.0,0.00124493]
[1734986153837,0.003,93031.0,93030.0,0.02857205]
[1734986154040,0.005,93031.0,93030.0,0.02857205]
[1734986154319,0.001,93031.0,93030.0,0.00857205]
[1734986154704,0.214956,93043.0,93031.0,0.214982]
[1734986155035,0.00807292,93042.0,93031.0,0.214982]
[1734986155810,0.00807292,93042.0,93030.0,0.01057205]
[1734986155811,0.214958,93041.0,93030.0,0.00957205]
[1734986156013,0.214958,93041.0,93030.0,0.001]
[1734986156014,0.214982,93031.0,93030.0,0.001]
[1734986156276,0.15,93028.0,93022.0,8.55e-05]
[1734986156450,0.365,93023.0,93022.0,8.55e-05]
[1734986156658,0.46898632,93023.0,93022.0,8.55e-05]
[1734986156902,0.37293731,93023.0,93022.0,8.55e-05]
[1734986157914,0.38193731,93023.0,93022.0,0.0010855]
[1734986158122,0.37293731,93023.0,93022.0,8.55e-05]
[1734986158321,0.37493731,93023.0,93022.0,8.55e-05]
[1734986158823,0.37293731,93023.0,93022.0,8.55e-05]
[1734986158995,0.45522904,93023.0,93022.0,8.55e-05]
[1734986159198,0.15,93022.0,93003.0,0.00791375]
[1734986159451,0.215018,93016.0,93003.0,0.00791375]
[1734986159810,0.430036,93016.0,93003.0,0.00791375]
[1734986160067,0.00799345,93015.0,93003.0,0.00791375]
[1734986160241,0.215021,93014.0,93003.0,0.00791375]
[1734986160452,0.02347404,93015.0,92999.0,8.54e-05]
[1734986160659,0.00799345,93013.0,93001.0,0.00053253]
[1734986160868,0.215036,93008.0,93001.0,0.00053253]
[1734986161194,0.215044,93004.0,93001.0,0.00053253]
[1734986161435,0.215049,93002.0,93001.0,0.00053253]
[1734986161840,0.00589529,93002.0,93001.0,0.00053253]
[1734986162042,0.430081,93006.0,93001.0,0.00053253]
[1734986162255,0.00786039,93002.0,93001.0,0.00053253]
[1734986162461,0.215046,93003.0,93001.0,0.00053253]
[1734986162674,0.00786039,93002.0,93001.0,0.00053253]
[1734986163662,0.215013,93018.0,93001.0,0.00053253]
[1734986163885,0.002,93002.0,93001.0,0.00053253]
[1734986164085,0.001,93006.0,93001.0,0.00053253]
[1734986164296,0.001,93006.0,93001.0,0.215049]
[1734986164500,0.002,93002.0,93001.0,0.430098]
[1734986164708,0.002,93002.0,93001.0,0.59119807]
[1734986165738,0.21499,93028.0,93017.0,0.215012]
[1734986166044,0.00780578,93027.0,93023.0,0.215]
[1734986166249,0.23703274,93036.0,93019.0,0.00791375]
[1734986166516,0.00788678,93026.0,93021.0,0.215004]
[1734986166742,0.00788678,93026.0,93019.0,0.00791375]
[1734986166743,0.15,93040.0,93026.0,0.214992]
[1734986166941,0.429918,93041.0,93026.0,0.214992]
[1734986167147,0.02159063,93038.0,93016.0,0.00791375]
[1734986167350,0.214968,93037.0,93014.0,0.22293475]
[1734986167553,0.214998,93024.0,93013.0,0.0807]
[1734986167803,0.001,93028.0,93002.0,0.0807]
[1734986168018,0.001,93028.0,93001.0,0.002]
[1734986168019,0.215044,93005.0,93001.0,0.002]
[1734986168226,0.0215044,93004.0,92995.0,0.000171]
[1734986168429,0.215062,92997.0,92995.0,0.000171]
[1734986168844,0.0077149,92996.0,92995.0,0.000171]
[1734986169234,0.0077149,92996.0,92987.0,0.00608475]
[1734986169439,0.215053,93001.0,92987.0,0.00608475]
[1734986169653,0.215053,93000.0,92983.0,0.215092]
[1734986169859,0.22281497,93000.0,92983.0,0.215092]
[1734986170095,0.22281497,93000.0,92995.0,0.001]
[1734986170691,0.22281497,93000.0,92987.0,0.22116675]
[1734986171130,0.22281497,93000.0,92991.0,0.215072]
[1734986171131,0.00776197,93000.0,92991.0,0.215072]
[1734986171354,0.00776197,93000.0,92999.0,0.00608475]
[1734986171560,0.00053013,93005.0,92999.0,0.00608475]
[1734986172018,0.00053013,93005.0,93000.0,0.215053]
[1734986172987,0.00053013,93005.0,92993.0,0.00608475]
[1734986173216,0.00153013,93005.0,92993.0,0.00608475]
[1734986173394,0.00777052,93004.0,92993.0,0.00608475]
[1734986173636,0.00153013,93005.0,92993.0,0.00608475]
[1734986173844,0.02165651,93004.0,92993.0,0.00608475]
[1734986174048,0.215046,93003.0,92993.0,0.00608475]
[1734986174255,0.22281287,93003.0,92993.0,0.00408475]
[1734986175128,0.00776687,93003.0,92993.0,0.00408475]
[1734986175727,0.00976687,93003.0,92993.0,0.00408475]
[1734986175955,0.03240007,93003.0,92993.0,0.00408475]
[1734986176185,0.215049,93002.0,92990.0,0.00408475]
[1734986176401,0.215049,93002.0,92981.0,0.0139604]
[1734986176402,0.215078,92990.0,92981.0,0.0139604]
[1734986176618,0.215086,92987.0,92981.0,0.0139604]
[1734986176842,0.00472284,92989.0,92981.0,0.01804515]
[1734986177073,0.215066,92995.0,92981.0,0.01804515]
[1734986177283,0.00629712,92988.0,92981.0,0.23314215]
[1734986177500,0.24697123,92995.0,92981.0,0.01804515]
[1734986177727,0.215089,92985.0,92981.0,0.0139604]
[1734986177946,0.215093,92983.0,92981.0,0.0139604]
[1734986178156,0.16528315,92982.0,92981.0,0.0149604]
[1734986178340,0.10398632,92982.0,92981.0,0.0149604]
[1734986178542,0.00625375,92982.0,92981.0,0.0139604]
[1734986179393,0.00625375,92982.0,92981.0,0.0099604]
[1734986180204,0.00825375,92982.0,92981.0,0.0099604]
[1734986182898,0.11224007,92982.0,92981.0,0.0099604]
[1734986183103,0.19019353,92982.0,92981.0,0.0099604]
[1734986183320,0.43610878,92982.0,92981.0,0.0099604]
[1734986183526,0.53595162,92982.0,92981.0,9e-07]
[1734986183730,0.53595162,92982.0,92963.0,8.54e-05]
[1734986183731,0.445034,92965.0,92963.0,8.54e-05]
[1734986183934,0.54902032,92965.0,92963.0,8.54e-05]
[1734986184135,0.64003959,92965.0,92963.0,8.54e-05]
[1734986184339,0.215187,92943.0,92932.0,0.00351205]
[1734986184749,0.00502074,92942.0,92932.0,0.00351205]
[1734986185161,0.00502074,92942.0,92932.0,0.00367138]
[1734986185310,0.21519,92941.0,92932.0,0.00015933]
[1734986185712,0.00498547,92940.0,92932.0,0.00015933]
[1734986186139,0.215194,92939.0,92932.0,0.00015933]
[1734986186489,0.430399,92937.0,92932.0,0.00015933]
[1734986186926,0.430408,92935.0,92932.0,0.00015933]
[1734986187343,0.215208,92933.0,92932.0,0.00015933]
[1734986187544,0.46919432,92933.0,92932.0,0.00015933]
[1734986187780,0.56934275,92933.0,92932.0,0.00015933]
[1734986187981,0.59356965,92933.0,92932.0,0.00015933]
[1734986188897,0.74196965,92933.0,92932.0,0.00015933]
[1734986189125,0.74196965,92933.0,92894.0,7e-05]
[1734986189126,0.09648795,92916.0,92894.0,7e-05]
[1734986189485,0.215289,92899.0,92889.0,0.00120814]
[1734986189599,0.10398632,92908.0,92889.0,0.00136783]
[1734986190066,0.215282,92902.0,92889.0,0.21546969]
[1734986190214,0.10398632,92901.0,92889.0,0.21546969]
[1734986190426,0.21526,92911.0,92899.0,0.215286]
[1734986190632,0.1,92930.0,92889.0,0.00367174]
[1734986190633,0.001,92908.0,92903.0,0.430554]
[1734986191211,0.215241,92920.0,92903.0,0.430554]
[1734986191359,0.275283,92919.0,92900.0,0.215285]
[1734986191565,0.002,92911.0,92900.0,0.215285]
[1734986191774,0.002,92911.0,92899.0,0.00351205]
[1734986191982,0.002,92911.0,92897.0,0.215292]
[1734986191983,0.215264,92909.0,92897.0,0.215292]
[1734986192148,0.0432502,92910.0,92897.0,0.215292]
[1734986192342,0.004,92908.0,92897.0,0.215292]
[1734986192551,0.004,92908.0,92898.0,0.215289]
[1734986192764,0.002,92911.0,92898.0,0.215289]
[1734986192765,0.002,92911.0,92903.0,0.215278]
[1734986192979,0.10398632,92910.0,92892.0,0.0806]
[1734986193216,0.215264,92909.0,92892.0,0.0806]
[1734986193517,0.10398632,92908.0,92892.0,0.0806]
[1734986193723,0.21528,92903.0,92893.0,0.2153]
[1734986193919,0.02129668,92919.0,92898.0,0.00351205]
[1734986194121,0.003,92910.0,92895.0,0.215296]
[1734986194349,0.001,92909.0,92903.0,0.215277]
[1734986194549,0.001,92909.0,92907.0,0.215266]
[1734986194755,0.001,92909.0,92908.0,0.1817625]
[1734986194956,0.001,92909.0,92908.0,0.18068632]